Cogmind - Beta 17 @@@ ROGUE MODE // 2026.07.31 @ 20:20:18 Player: 50l Result: Destroyed by Y-54 Guardian with Gatling Laser Performance ------------- Evolutions (3) 1500 Regions Visited (7) 1400 Robots Destroyed (194) 970 Value Destroyed (5320) 5320 Prototype IDs (10) 200 Alien Tech Used (0) 0 Bonus (574) 574 TOTAL SCORE: 9964 Bonus ------- High Alert Combat Kills 393 Follower Combat Kills 212 Friendly Fire -31 Cogmind --------- Core Integrity 0/700 Matter 290/300 Energy 248/290 System Corruption 4% Temperature Cool (6) Movement Walking (125) Location -7/Storage Parts ------- > --- POWER (1) -------- Reinforced Deuterium Engine > --- PROPULSION (4) --- Carbon-fiber Leg Improved Titanium Leg Improved Titanium Leg Flexi-carbon Leg > --- UTILITY (6) ------ Improved Heat Sink High-capacity Storage Unit Machine Analyzer Target Analyzer Core Analyzer Improved Light Armor Plating > --- WEAPON (2) ------- Cooled Particle Cannon Cooled Particle Cannon > --- INVENTORY (20) --- Reinforced Deuterium Engine Micro Nuclear Core VSS Leg Improved Cooling System Trap Scanner Experimental Sensor Array Improved Terrain Scanner Advanced Terrain Scan Processor Advanced Terrain Scan Processor Seismic Detector Authchip [Propulsion] Authchip [Processor] High-powered Tractor Beam Cooled Particle Cannon Gauss Rifle Gauss Rifle Improved Grenade Launcher Heavy Missile Launcher Improved Datajack Peak State ------------ > --- POWER ------------ Reinforced Deuterium Engine > --- PROPULSION ------- Carbon-fiber Leg Improved Titanium Leg Improved Titanium Leg Flexi-carbon Leg > --- UTILITY ---------- Improved Heat Sink High-capacity Storage Unit Machine Analyzer Target Analyzer Core Analyzer Improved Light Armor Plating > --- WEAPON ----------- Cooled Particle Cannon Cooled Particle Cannon > --- INVENTORY -------- Reinforced Deuterium Engine Micro Nuclear Core VSS Leg Improved Cooling System Trap Scanner Experimental Sensor Array Improved Terrain Scanner Advanced Terrain Scan Processor Advanced Terrain Scan Processor Seismic Detector Authchip [Propulsion] Authchip [Processor] High-powered Tractor Beam Cooled Particle Cannon Gauss Rifle Gauss Rifle Improved Grenade Launcher Heavy Missile Launcher Improved Datajack [Rating: 54] Favorites ----------- Power Light Deuterium Engine Engine Light Deuterium Engine Power Core Nuclear Core Propulsion Light Treads Treads Light Treads Leg Improved Titanium Leg Wheel Armored Wheel Hover Unit Combat Airjet Utility Improved Heat Sink Device Improved Heat Sink Storage High-capacity Storage Unit Processor Target Analyzer Protection Improved Light Armor Plating Weapon Heavy Ion Cannon Energy Gun Advanced Beam Rifle Energy Cannon Heavy Ion Cannon Ballistic Gun Assault Rifle Launcher Improved Grenade Launcher Build | -11 -10 -10 -9 -9 -8 -7 -7 ------- Run | Yrd Mat Min Mat Min Mat Fac Sto Slots Evolved 6 | . . . 2 . 2 2 . Power . | . . . . . . . . Propulsion 2 | . . . 1 . 1 . . Utility 4 | . . . 1 . 1 2 . Weapon . | . . . . . . . . Parts Attached 100 | 7 4 3 17 4 30 29 6 Power 8 | 1 . 1 . . 2 3 1 Engine 6 | 1 . 1 . . 1 2 1 Core 2 | . . . . . 1 1 . Reactor . | . . . . . . . . Propulsion 39 | 2 . 2 7 3 14 10 1 Treads 29 | 2 . 2 6 . 14 5 . Leg 6 | . . . . . . 5 1 Wheel 1 | . . . 1 . . . . Hover 3 | . . . . 3 . . . Flight . | . . . . . . . . Utility 29 | 2 2 . 5 . 6 12 2 Device 10 | 1 1 . 2 . 2 4 . Storage 4 | 1 1 . . . 1 1 . Processor 4 | . . . . . . 3 1 Hackware . | . . . . . . . . Protection 11 | . . . 3 . 3 4 1 Artifact . | . . . . . . . . Weapon 24 | 2 2 . 5 1 8 4 2 Energy Gun 6 | 1 . . . . 4 1 . Energy Cannon 13 | . 1 . 5 . 3 2 2 Ballistic Gun 2 | 1 . . . . 1 . . Ballistic Cannon . | . . . . . . . . Launcher 3 | . 1 . . 1 . 1 . Special Weapon . | . . . . . . . . Impact Weapon . | . . . . . . . . Slashing Weapon . | . . . . . . . . Piercing Weapon . | . . . . . . . . Special Melee Weapon . | . . . . . . . . Unidentified Prototypes 7 | . . . 1 . 4 1 1 Parts Lost 28 | . . . 3 . 5 19 1 Power 4 | . . . . . 2 2 . Propulsion 11 | . . . 2 . . 8 1 Utility 10 | . . . 1 . 2 7 . Weapon 3 | . . . . . 1 2 . Highest Loss Streak 15 | . . . 2 . 3 15 1 To Critical Strikes . | . . . . . . . . Average Backups 15 | 3 9 14 14 15 18 17 17 Power . | . . . . 1 1 . . Propulsion 1 | . 1 1 . . 1 2 1 Utility 9 | 1 4 9 10 10 10 9 10 Weapon 2 | . 1 3 2 2 3 3 5 Tool/Special . | . . . . . . . . Unused Backups 41 | . 5 2 4 . 13 3 14 Power 4 | . 1 . . . 1 1 1 Propulsion 3 | . 2 . . . 1 . . Utility 13 | . . . . . 3 2 8 Weapon 19 | . 2 2 4 . 7 . 4 Tool/Special 2 | . . . . . 1 . 1 Average Slot Usage (%) 95 | . 100 100 96 98 98 87 94 Engine 7 | . 14 14 11 11 3 2 2 Core 2 | . . . . . 5 4 5 Treads 27 | . 28 28 31 27 34 19 . Leg 2 | . . . . . . 8 30 Device 12 | . 14 14 13 11 11 12 10 Storage 9 | . 14 14 11 11 9 7 7 Processor 1 | . . . . . . 3 19 Protection 9 | . . . 6 11 14 11 4 Energy Gun 5 | . 13 14 1 . 8 . . Energy Cannon 13 | . 7 14 20 17 8 14 13 Peak Build Rating 54 | 7 12 15 24 36 38 49 54 Average Rating 28 | 4 9 13 21 25 33 43 50 On Entrance 21 | . 7 12 15 24 33 38 43 Avg Prop Armor Cover (%) 2 | . . . . . 2 . . Naked Turns . | . . . . . . . . Heaviest Build 90 | 15 32 31 41 39 69 90 73 Greatest Support 90 | 40 40 40 60 60 90 87 75 Greatest Overweight (x) 15 | . . . 1 1 2 15 1 Average Overweight (x) . | . . . . . . . . Largest Inventory Capacity 20 | 8 15 15 15 15 20 20 20 Average Capacity 17 | 5 11 15 15 15 19 20 20 Most Carried 20 | 5 14 15 15 15 20 20 19 Average Carried 15 | 3 9 14 14 15 18 17 17 Final Capacity 20 | 8 15 15 15 15 20 20 20 Final Carried 20 | 5 14 15 15 15 20 17 19 Class Distribution -------------------- 63% | Mutant 36% | Scavenger-Mutant Dominant Class ---------------- Mutant | -10/Materials Mutant | -10/Mines Scavenger-Mutant | -9/Materials Mutant | -9/Mines Mutant | -8/Materials Mutant | -7/Factory Scavenger-Mutant | -7/Storage Resources | -11 -10 -10 -9 -9 -8 -7 -7 ----------- Run | Yrd Mat Min Mat Min Mat Fac Sto Matter Collected 1665 | 288 172 46 180 66 434 434 45 Remotely . | . . . . . . . . Salvage Created 7275 | 95 704 32 1316 103 1974 2911 140 Parts 452 | 4 40 2 94 14 116 179 3 Haulers Intercepted 19 | . 2 . 6 . 6 5 . Recyclers Shooed 6 | . 5 . . . . 1 . Parts Field Recycled . | . . . . . . . . Retrieved Matter . | . . . . . . . . Parts Self-Destructed . | . . . . . . . . Prevented . | . . . . . . . . Parts Restored . | . . . . . . . . Kills | -11 -10 -10 -9 -9 -8 -7 -7 ------- Run | Yrd Mat Min Mat Min Mat Fac Sto Combat Hostiles Destroyed 126 | . 10 2 25 7 33 47 2 Guns 11 | . 5 1 . . 5 . . Cannons 93 | . 1 1 24 6 21 39 1 AOE 16 | . 4 . . 1 5 6 . Classes Destroyed 17 | 2 5 . 4 . 2 4 . Worker 21 | . 5 . 1 . 3 12 . Builder 6 | . . . 1 . . 5 . Tunneler 1 | 1 . . . . . . . Hauler 19 | . 2 . 6 . 6 5 . Recycler 6 | 1 3 . . . 1 1 . Operator 4 | . . . 1 . 2 1 . Watcher 11 | . 2 . 2 . 4 3 . Swarmer 38 | . 6 2 8 7 6 9 . Grunt 42 | . 4 . 8 . 15 15 . Brawler 2 | . . . 1 . 1 . . Duelist 3 | . . . . . 1 2 . Protector 1 | . . . . . . 1 . Sentry 25 | . . . 8 . 9 6 2 Specialist 4 | . . . . . . 4 . Hunter 2 | . . . . . . 2 . Programmer 8 | . . . . . . 8 . Heavy 1 | . . . . . 1 . . Best Kill Streak 12 | 2 6 1 4 4 6 12 1 Combat Bots Only 6 | . 5 1 4 4 6 6 1 Max Kills in Single Turn 5 | 1 5 1 2 1 2 5 1 Gunslinging . | . . . . . . . . Exploded 4 | . 4 . . 1 2 2 . Melee . | . . . . . . . . Uniques/NPCs Destroyed . | . . . . . . . . Combat | -11 -10 -10 -9 -9 -8 -7 -7 -------- Run | Yrd Mat Min Mat Min Mat Fac Sto Hostile Shots Fired 827 | . 29 20 85 26 130 435 102 Missed 239 | . 6 7 19 5 46 116 40 Hits 588 | . 23 13 66 21 84 319 62 Melee 13 | . . . . . 3 10 . Projectile 575 | . 23 13 66 21 81 309 62 Critical Strikes 15 | . 2 . 2 . 2 9 . Damage Taken 7785 | . 208 117 868 167 1367 4512 546 Core 1043 | . 39 6 121 15 156 622 84 Absorbed by Shields . | . . . . . . . . Redirected to Shielding 221 | . . . . . 119 102 . Core Remaining (%) 79 | 100 . 82 . 66 71 . . Volleys Fired 411 | 6 41 7 73 10 117 145 12 Largest 2 | 2 2 2 2 2 2 2 2 Hottest 136 | 70 110 110 136 136 136 130 60 Shots Fired 813 | 12 81 14 146 18 228 288 26 Gun 187 | 12 74 7 12 . 82 . . Cannon 615 | . 6 7 134 16 142 284 26 Launcher 11 | . 1 . . 2 4 4 . Special . | . . . . . . . . Kinetic 40 | 6 34 . . . . . . Thermal 762 | 6 46 14 146 16 224 284 26 Explosive 11 | . 1 . . 2 4 4 . Electromagnetic . | . . . . . . . . Robot Hit Streak 15 | 6 14 8 14 3 15 15 11 Robot Miss Streak 6 | 1 3 5 5 4 5 6 3 Penetration Max . | . . . . . . . . Secondary Targets 2 | . 1 . . . 1 . . Max Gunslinging Chain 1 | . 1 . . . 1 . . Shots Hit Robots 495 | 8 57 4 84 8 138 178 18 Core Hits 250 | 3 31 2 38 7 61 104 4 Critical Kills 3 | . . . . . 2 1 . Critical Parts Destroyed . | . . . . . . . . Critical Strikes 11 | 1 5 1 . . 3 1 . Burn 8 | 1 5 1 . . 1 . . Meltdown 3 | . . . . . 2 1 . Melee Attacks . | . . . . . . . . Impact . | . . . . . . . . Slashing . | . . . . . . . . Piercing . | . . . . . . . . Sneak Attacks . | . . . . . . . . Combat Hostiles . | . . . . . . . . Follow-up Attacks . | . . . . . . . . Damage Inflicted 13906 | 92 942 105 1698 284 3495 6807 483 Guns 1919 | 92 676 52 113 . 986 . . Cannons 10012 | . 71 53 1584 205 2070 5546 483 Explosions 1941 | . 195 . . 79 432 1235 . Melee . | . . . . . . . . Ramming 34 | . . . 1 . 7 26 . Kinetic 366 | 54 312 . . . . . . Thermal 11565 | 38 435 105 1697 205 3056 5546 483 Explosive 1799 | . 195 . . 79 432 1093 . Electromagnetic 142 | . . . . . . 142 . Impact . | . . . . . . . . Slashing . | . . . . . . . . Piercing . | . . . . . . . . Highest Corruption 4 | . 3 3 . . . 4 4 Average Corruption 3 | . 2 3 . . . 3 4 Corruption Purged 3 | . . . . . . 3 . Corruption Blocked . | . . . . . . . . Effects 36 | . 5 9 . . . 18 4 Message Errors 12 | . 1 4 . . . 7 . Matter Fused 5 | . 1 2 . . . 2 . Heat Flow Errors 2 | . 1 1 . . . . . Energy Discharges 4 | . . 1 . . . 2 1 Parts Fused 1 | . . 1 . . . . . Data Loss (minor) 4 | . 1 . . . . 3 . Data Loss (major) 3 | . 1 . . . . 1 1 Misfires 4 | . . . . . . 2 2 Alerts 1 | . . . . . . 1 . Overload Shots . | . . . . . . . . Overflow Damage 352 | . . 14 21 . 118 199 . Projectiles 173 | . . 14 21 . 47 91 . Explosions 179 | . . . . . 71 108 . Melee . | . . . . . . . . Knockbacks . | . . . . . . . . Impact . | . . . . . . . . Kinetic . | . . . . . . . . Secondary . | . . . . . . . . Self-Inflicted Damage 177 | . . . . . 30 147 . Shots 4 | . . . . . 1 3 . Rammed 6 | . . . 1 . 1 4 . Targets Rammed 7 | . . . 1 . 1 5 . Kicked 1 | . . . . . . 1 . Crushed . | . . . . . . . . Highest Temperature 375 | 27 157 199 372 375 306 324 . Average Temperature 67 | 14 37 34 91 144 64 66 . Received Heat Transfer 1755 | . 63 . 279 . 459 804 150 Effects 8 | . . . 3 1 2 2 . Shutdowns 1 | . . . . 1 . . . Energy Bleed 3 | . . . 1 . 2 . . Interference 4 | . . . 2 . . 2 . Siege Activations . | . . . . . . . . Martial Activations . | . . . . . . . . Shielding Activations . | . . . . . . . . Robots Disrupted . | . . . . . . . . Combat Hostiles . | . . . . . . . . Robots Corrupted . | . . . . . . . . Combat Hostiles . | . . . . . . . . Parts Fried . | . . . . . . . . Impact Corruptions . | . . . . . . . . Robots Melted 6 | . . . 1 . 2 2 1 Combat Hostiles 6 | . . . 1 . 2 2 1 Parts Melted 40 | 2 3 . 7 1 7 17 3 Heat Transferred 18374 | 185 1591 333 3256 333 5180 6830 666 Parts Sabotaged . | . . . . . . . . Parts Stolen . | . . . . . . . . Parts Stripped . | . . . . . . . . Power Chain Reactions 1 | . . . . . . 1 . Alert | -11 -10 -10 -9 -9 -8 -7 -7 ------- Run | Yrd Mat Min Mat Min Mat Fac Sto Maximum Alert Level 3 | . . . 1 . 2 3 1 Low Security (%) 50 | 100 100 100 87 100 16 6 . Level 1 37 | . . . 12 . 80 46 100 Level 2 5 | . . . . . 3 20 . Level 3 6 | . . . . . . 26 . Level 4 . | . . . . . . . . Level 5 . | . . . . . . . . High Security . | . . . . . . . . Max Security . | . . . . . . . . Peak Influence 787 | 5 137 111 293 117 442 787 385 Initial 338 | . . . 18 108 20 197 338 Average 229 | . 36 39 106 54 276 471 348 Influence Increases 4507 | 10 401 294 883 203 1150 1420 146 Destroy 0b10 Robot/C 2700 | . 200 200 540 140 660 920 40 Destroy 0b10 Robot/NC 350 | 10 60 . 60 . 80 140 . Destroy Leader 682 | . 48 30 158 20 200 206 20 Allied During Kill 81 | . . 64 17 . . . . Successful Hack 210 | . 51 . 27 14 44 9 65 Disable Machine 210 | . . . 45 . 75 75 15 Destroy Structure 154 | . 12 . 6 14 61 55 6 Partial Spotted 15 | . . . . . 15 . . Lose Combat Pursuer 105 | . 30 . 30 15 15 15 . Influence Decreases 4163 | 10 401 247 653 427 769 1109 547 Entered New Map 875 | . . . 29 169 33 237 407 Time Decay 2866 | 10 312 227 561 258 686 682 130 Lost Part 280 | . . . 30 . 50 190 10 Lost Ally 53 | . . 20 33 . . . . Purge Threat 89 | . 89 . . . . . . Squads Dispatched 18 | . . 1 2 . 4 10 1 Investigation 3 | . . 1 1 . 1 . . Extermination 5 | . . . . . . 5 . Reinforcement 7 | . . . 1 . 3 2 1 Assault . | . . . . . . . . Garrison 3 | . . . . . . 3 . Intercept . | . . . . . . . . Searches Triggered . | . . . . . . . . Construction Impeded 1 | . . . . . . . 1 Haulers Reinforced 1 | . . . . . . 1 . Active Scanning Responses . | . . . . . . . . Cargo Convoy Interrupts 1 | . . . . . . 1 . Stealth | -11 -10 -10 -9 -9 -8 -7 -7 --------- Run | Yrd Mat Min Mat Min Mat Fac Sto Distress Signals 8 | . . . 2 . 1 4 1 Communications Jammed . | . . . . . . . . Distress Signals . | . . . . . . . . Times Spotted 192 | . 19 6 41 8 51 63 4 Peak Tracking Total 11 | . 5 3 4 4 4 11 2 Tactical Retreats 6 | . 1 . 2 1 1 1 . Traps | -11 -10 -10 -9 -9 -8 -7 -7 ------- Run | Yrd Mat Min Mat Min Mat Fac Sto Traps Triggered 7 | . 2 . 2 . 1 1 1 Indirectly . | . . . . . . . . Trap Hack Attempts . | . . . . . . . . Triggered . | . . . . . . . . Disarmed . | . . . . . . . . Reprogrammed . | . . . . . . . . Reused . | . . . . . . . . Traps Extracted . | . . . . . . . . Installed . | . . . . . . . . Triggered . | . . . . . . . . Machines | -11 -10 -10 -9 -9 -8 -7 -7 ---------- Run | Yrd Mat Min Mat Min Mat Fac Sto Machines Disabled 14 | . . . 3 . 5 5 1 Max in Single Turn 2 | . . . 1 . 1 2 1 Garrison Access 1 | . . . . . 1 . . Machines Repaired . | . . . . . . . . Machines Dismantled . | . . . . . . . . Machines Sabotaged . | . . . . . . . . Overloaded Fab Kills . | . . . . . . . . Hacking | -11 -10 -10 -9 -9 -8 -7 -7 --------- Run | Yrd Mat Min Mat Min Mat Fac Sto Machines Accessed 39 | . 7 1 10 1 12 1 7 Terminals 34 | . 7 . 9 1 10 1 6 Fabricators . | . . . . . . . . Repair Stations 1 | . . . . . . . 1 Recycling Units . | . . . . . . . . Scanalyzers 2 | . . . 1 . 1 . . Garrison Access 1 | . . . . . 1 . . Total Hacks 126 | . 26 1 28 2 48 3 18 Successful 72 | . 16 1 14 2 29 3 7 Failed 53 | . 9 . 14 . 19 . 11 Catastrophic 7 | . 1 . 1 . 5 . . Database Lockouts 1 | . 1 . . . . . . Manual 103 | . 20 . 27 2 40 2 12 Terminals 119 | . 26 . 27 2 46 3 15 Fabricators . | . . . . . . . . Repair Stations 3 | . . . . . . . 3 Recycling Units . | . . . . . . . . Scanalyzers 2 | . . . 1 . 1 . . Garrison Access 1 | . . . . . 1 . . Terminal Hacks 27 | . 6 1 3 2 13 1 1 Part Schematic 1 | . 1 . . . . . . Robot Analysis 8 | . . . 2 . 6 . . Prototype ID Bank 1 | . 1 . . . . . . Open Door 2 | . . 1 . . . . 1 Branch Access Points 2 | . . . . 1 1 . . Terminal Index 2 | . . . 1 . 1 . . Alert Level 1 | . . . . . . 1 . Unreport Threat 1 | . 1 . . . . . . Locate Traps 1 | . . . . . 1 . . Hauler Manifests 1 | . . . . . 1 . . Registered Components 2 | . 1 . . . 1 . . Registered Prototypes 1 | . 1 . . . . . . Zone Layout 4 | . 1 . . 1 2 . . Fabricator Hacks . | . . . . . . . . Repair Station Hacks 1 | . . . . . . . 1 Scan Component 1 | . . . . . . . 1 Recycling Unit Hacks . | . . . . . . . . Scanalyzer 2 | . . . 1 . 1 . . Insert Component 1 | . . . 1 . . . . Retrieve Study 1 | . . . . . 1 . . Garrison Access Hacks 1 | . . . . . 1 . . Seal Access 1 | . . . . . 1 . . Unauthorized Hacks 40 | . 10 . 9 . 14 2 5 Terminals 40 | . 10 . 9 . 14 2 5 Botnet 22 | . 5 . 4 . 8 1 4 Skim 18 | . 5 . 5 . 6 1 1 Fabricators . | . . . . . . . . Repair Stations . | . . . . . . . . Recycling Units . | . . . . . . . . Scanalyzers . | . . . . . . . . Garrison Access . | . . . . . . . . Data Cores Recovered 1 | . . . 1 . . . . Used . | . . . . . . . . Hacking Detections 34 | . 5 . 10 1 10 1 7 Full Trace Events 4 | . 2 . 1 . 1 . . Feedback Events . | . . . . . . . . Feedback Blocked . | . . . . . . . . Robot Schematics Acquired . | . . . . . . . . Robots Built . | . . . . . . . . Authchips . | . . . . . . . . Time . | . . . . . . . . Total Robot Build Rating . | . . . . . . . . Part Schematics Acquired 1 | . 1 . . . . . . Parts Built . | . . . . . . . . Authchips . | . . . . . . . . Time . | . . . . . . . . Total Part Build Rating . | . . . . . . . . Part Studies Acquired 1 | . . . . . 1 . . Parts Repaired . | . . . . . . . . Time . | . . . . . . . . Parts Recycled . | . . . . . . . . Recycled Matter . | . . . . . . . . Retrieved Matter . | . . . . . . . . Retrieved Components . | . . . . . . . . Parts Scanalyzed . | . . . . . . . . Part Schematics Acquired . | . . . . . . . . Parts Damaged . | . . . . . . . . Bothacking | -11 -10 -10 -9 -9 -8 -7 -7 ------------ Run | Yrd Mat Min Mat Min Mat Fac Sto Used RIF Installer . | . . . . . . . . Robots Hacked . | . . . . . . . . Non-combat . | . . . . . . . . Combat . | . . . . . . . . Robot Hacks Applied . | . . . . . . . . Relay Couplers Released . | . . . . . . . . Fabnet Peak Effective % . | . . . . . . . . Robots Rewired . | . . . . . . . . Allies Hacked . | . . . . . . . . Hacks Repelled . | . . . . . . . . Allies | -11 -10 -10 -9 -9 -8 -7 -7 -------- Run | Yrd Mat Min Mat Min Mat Fac Sto Total Allies 5 | . . 5 . . . . . Largest Group 5 | . . 5 4 . . . . Highest-Rated Group 87 | . . 87 79 . . . . Highest-Rated Ally 31 | . . 31 31 . . . . Total Orders . | . . . . . . . . Ally Attacks 53 | . . 26 27 . . . . Total Damage 593 | . . 270 323 . . . . Kills 12 | . . 8 4 . . . . Allies Corrupted . | . . . . . . . . Allies Melted . | . . . . . . . . Intel | -11 -10 -10 -9 -9 -8 -7 -7 ------- Run | Yrd Mat Min Mat Min Mat Fac Sto Active Infowar (turns) 2257 | 15 869 . . . 260 842 271 Traps 1026 | . . . . . 260 654 112 Seismic 887 | 15 869 . . . . 3 . Machine Analysis 656 | . . . . . . 385 271 Robot Analysis Total 8 | . . . 2 . 6 . . Derelict Logs Recovered 3 | . . 1 . 2 . . . Drone Launches . | . . . . . . . . Drone Recoveries . | . . . . . . . . Exploration | -11 -10 -10 -9 -9 -8 -7 -7 ------------- Run | Yrd Mat Min Mat Min Mat Fac Sto Turns Passed 10851 | 117 1293 717 2297 687 2759 2710 271 Spaces Moved 5411 | 60 684 418 1103 468 1354 1162 162 Core 13 | 11 . . . . . 2 . Treads 4619 | 49 684 418 1103 331 1321 713 . Legs 609 | . . . . . . 447 162 Wheels . | . . . . . . . . Hover 170 | . . . . 137 33 . . Flight . | . . . . . . . . Fastest Speed 50 | 50 160 160 160 74 74 110 125 Average Speed 156 | 139 160 160 160 135 154 166 125 Slowest Speed 800 | 160 160 160 240 167 320 800 196 Overloaded Moves . | . . . . . . . . Propulsion Burnouts . | . . . . . . . . Robots Hopped . | . . . . . . . . Potential Cave-ins . | . . . . . . . . Cave-ins Triggered . | . . . . . . . . Exploration Rate (%) 69 | 4 97 97 94 93 96 40 31 Regions Visited 7 Branch Regions 3 Pre-discovered Areas 3 | . . 1 . 1 1 . . Known Exits Taken 3 | . . . . 1 1 1 . Unknown Exits Taken 4 | 1 1 1 1 . . . . Scrap Searched 2 | . . 1 . 1 . . . Spaces Dug 2 | . . . . . . . 2 Terrain Destroyed 164 | . 11 . . 28 69 50 6 Melee . | . . . . . . . . Projectile 45 | . . . . . 19 20 6 AOE 119 | . 11 . . 28 50 30 . Terrain Rammed . | . . . . . . . . Walls Destroyed . | . . . . . . . . Machines Disabled . | . . . . . . . . Actions | -11 -10 -10 -9 -9 -8 -7 -7 --------- Run | Yrd Mat Min Mat Min Mat Fac Sto Total 6988 | 78 803 453 1490 503 1801 1653 207 Wait 871 | . 53 17 274 17 223 265 22 Move 5405 | 59 683 417 1102 467 1353 1162 162 Hop . | . . . . . . . . Pick Up 76 | 6 14 4 6 . 28 15 3 Fast Attach 43 | 6 1 1 7 3 12 10 3 Attach 32 | 1 . . 1 . 8 21 1 Detach 10 | . . . . 1 2 7 . Swap 52 | . 4 2 10 1 21 12 2 Drop 82 | . 7 5 16 4 36 12 2 Fire 411 | 6 41 7 73 10 117 145 12 Melee . | . . . . . . . . Ram . | . . . . . . . . Kick . | . . . . . . . . Crush 6 | . . . 1 . 1 4 . Escape Stasis . | . . . . . . . . Rewire . | . . . . . . . . Trap . | . . . . . . . . Miscellaneous . | . . . . . . . . Route ------- -11/Scrapyard -10/Materials (discovered 6 exits: *Mat x3 / *Min x2 / [*Sub]) -10/Mines (discovered 2 exits: *Mat x2) -9/Materials (discovered 5 exits: *Mat x3 / *Min x2) -9/Mines (discovered 3 exits: *Mat x2 / [*Exi]) -8/Materials (discovered 3 exits: *Fac x3) -7/Factory (discovered 7 exits: *Fac x3 / *Sto x2 / *Low x2) -7/Storage (discovered 2 exits: Fac / Rec) History --------- Turn | Location | Event 13 | -11/Scrapyard | Discovered new exit (range 14) 118 | -11/Scrapyard | Entered Materials 300 | -10/Materials | Build established: Mutant 411 | -10/Materials | Discovered new exit (range 12) 660 | -10/Materials | Discovered new exit (range 15) 673 | -10/Materials | Central database locked down 766 | -10/Materials | Discovered new exit (range 13) 903 | -10/Materials | Discovered new exit (range 11) 950 | -10/Materials | Discovered new exit (range 7) 1160 | -10/Materials | Discovered new exit (range 8) 1411 | -10/Materials | Entered Mines 1480 | -10/Mines | Assisted by bots powering up and referring to "LRC-V3" 1503 | -10/Mines | Discovered new exit (range 5) 1675 | -10/Mines | Learned location of Zion (-6) 1709 | -10/Mines | Met a Derelict shopkeep closing up shop 1896 | -10/Mines | Discovered new exit (range 16) 2058 | -10/Mines | Found a damaged Exp. Sensor Array with a note attached 2062 | -10/Mines | Found Prototype Device 2128 | -10/Mines | Entered Materials 2128 | -9/Materials | Accompanied by 4 allies 2128 | -9/Materials | Evolved 2 slots: Propulsion x1, Utility x1 2133 | -9/Materials | Led the pair of lost Derelicts to an unsafe place 2585 | -9/Materials | Build established: Scavenger-Mutant 2749 | -9/Materials | Discovered new exit (range 16) 3146 | -9/Materials | Discovered new exit (range 11) 3565 | -9/Materials | Discovered new exit (range 16) 3686 | -9/Materials | Learned Storage non-interactive machine intel 3809 | -9/Materials | Identified exit to Materials 3858 | -9/Materials | Learned 4 Recycling zone layouts 3895 | -9/Materials | Learned location of 1 exit from Storage 3922 | -9/Materials | Learned 2 Storage zone layouts 4004 | -9/Materials | Loaded intel: 2 repair station locations 4108 | -9/Materials | Discovered new exit (range 13) 4351 | -9/Materials | Build established: Mutant 4425 | -9/Materials | Entered Mines 4452 | -9/Mines | Met a Derelict bent on vengeance 4496 | -9/Mines | A weapon hastily lodged in a ceiling crevice suddenly fell to the ground 4699 | -9/Mines | Found a hidden stash of uninstalled traps 4799 | -9/Mines | Deemed a non-threat by the Exiles lab entrance 4799 | -9/Mines | Discovered new exit (range 5) 4925 | -9/Mines | Assembled infested the area 4994 | -9/Mines | Met 8R-AWN 5015 | -9/Mines | Received a Rocket Launcher from a helpful Derelict 5112 | -9/Mines | Entered Materials 5112 | -8/Materials | Evolved 2 slots: Propulsion x1, Utility x1 5190 | -8/Materials | Lost 3 parts (1p1u1w) 5441 | -8/Materials | Build established: Scavenger-Mutant 5893 | -8/Materials | Discovered new exit (range 15) 5992 | -8/Materials | Learned location of 2 exits from Factory 6052 | -8/Materials | Learned 4 Recycling zone layouts 6178 | -8/Materials | Learned location of 1 exit from Recycling 6207 | -8/Materials | Learned location of 2 exits from Factory 6225 | -8/Materials | Identified exit to Factory 6253 | -8/Materials | Learned 4 Lower Caves zone layouts 6580 | -8/Materials | Build established: Mutant 7871 | -8/Materials | Entered Factory 7871 | -7/Factory | Evolved 2 slots: Utility x2 7872 | -7/Factory | Identified exit to Storage 7872 | -7/Factory | Identified exit to Lower Caves 7873 | -7/Factory | Identified exit to Factory 9511 | -7/Factory | Garrison activated, responded to threat 9607 | -7/Factory | Cargo convoy interrupted 9619 | -7/Factory | Core integrity fell below 50% 9717 | -7/Factory | Lost 15 parts (2p7n5u1w) 9772 | -7/Factory | Core integrity fell below 20% 9999 | -7/Factory | Build established: Scavenger-Mutant 10581 | -7/Factory | Entered Storage 10583 | -7/Storage | Identified exit to Recycling 10584 | -7/Storage | Loaded intel: 24 non-interactive machine locations 10852 | -7/Storage | Destroyed by Y-54 Guardian with Gatling Laser Last Messages --------------- >>Scan(Imp. Titanium Leg) Scanning Imp. Titanium Leg... Ready to Repair: Imp. Titanium Leg Rating: 4 Time: 22 10817_ Connecting with Terminal... >>Trojan(Botnet) Trojan loaded successfully. Testing... Terminal linked with 3 systems. Awaiting botnet instructions. 10825_ System corrupted: FCS attempts to trigger Cld. Particle Cannon. 10825_ System corrupted: Cld. Particle Cannon misfires. 10833_ Triggered Heavy Explosive Trap. 10833_ An explosion rips through the floor. 10849_ U-05 Engineer lays Concrete. 10851_ U-05 Engineer builds a Wall. Map ----- +----------------------------------------------------+ | ???????????????"""???????"""? | | ???????????????"""??????????? | | ???????????????"""??????????? | | ????????????????????????????? | | ????????????????????????????? | | ????????????????????????????? | | ????????????????????????????? | | ????????????????????????????? | | ????????????????????????????? | | ??????? #???????????????????? | | ??????? #???????????????????? | | ??????? #???????????????????? | | ???#### #???????????????????? | | ???# ???????????????????? | | ???# #???????????????????? | | ???# #???????????????????? | | ???# #???????????????????? | | ???# #????"""????????????? | | ???# #????"R"????????????? | | ???# #????"?"????????????? | | ???# #???????????????????? | | ???# #???????????????????? | | ???# ######??????????????? | | ???# +???????" | | ???#Y#########??????????????" | | ???#@#?????????????????"""??" | | ???# #?????????????????"""??? | | ???# ##????????????????"""??? | | ?### ##???????? ????????? | | ?# #???????# #????+### | | ?# #???????# #???? # | | ?# #???????# ##### # | | ?# #???????# + | | ?# #???????# # | | ?### ########### "" # | | ??##u## # Y" # | | ??#" ## # "" ### | | ??## ## # ### | | ???# ## """ # | | ???# ## """ + """ | | ???# ## """ # "" | | ???# + """ # """ ### | | ?###+## """ # # | | ?# # + + | | ?#"" ###" ""##### ######## | | ?#"" "##"R""#??# #?????# | | ?#"Y T##""" #??#####????## | | ?#"" "#######???????????## | | ?#"" ##??????????????????# | | ?# #???????????????????# | +----------------------------------------------------+ Best States ------------- Heat Dissipation 62 Energy Generation 18 Energy Capacity 290 Matter Stores 300 Matter Capacity 300 Sight Range 16 Terrain Scan Density 10 Corruption Block 8 Armor Coverage 600 Weapon Shielding 66 Evasion (%) 55 Target Analysis 5 Core Analysis 6 Recoil Reduction 4 Particle Charging 15 Authchip Count 5 Item Schematics ----------------- Hcp. Storage Unit | -10/Materials | Hacked Robot Schematics ------------------ None Fabricated ------------ Nothing Repaired ---------- Nothing Studied --------- Imp. Grenade Launcher | -8/Materials | Hacked Alien Tech Used ----------------- None Achievements -------------- None Challenges ------------ None Game ------ Seed BladeVoltaicChaingun Manual? 0 Play Time 01:56:38 Cumulative 370.6 hours Start 2026.07.29 @ 14:57:39 End 2026.07.31 @ 20:20:18 Sessions 9 Manual Loads 0 Difficulty Rogue Special Mode None Game No. 217 Rogue 143 Adventurer 74 Explorer 0 Win Type - Total 18 Types 15/0/0/3/0/0/0/0/0/0 Lore% 75 Gallery% 68 Achievement% 54 Wizard Run 0 Options --------- Layout 2 ASCII 0 Keyboard 0 Movement Mouse Keybinds 0 Fullscreen 1 Font 32/SmallcapsGlow Map View 50x44 Zoom Use 0% Tactical HUD 1 Map Filters NONE Filters NONE Steam 1 RUN: ec9a45fc-c365-4bea-bb71-840cf40e21c6